Cogmind - Beta 13 X1 @@@ ROGUE MODE // 2023.11.25 @ 21:04:47 Player: alice_fexa Result: Destroyed by RE-QGF(R) with Subdweller Beam Cannon Performance ------------- Evolutions (0) 0 Regions Visited (3) 600 Robots Destroyed (27) 135 Value Destroyed (580) 580 Prototype IDs (0) 0 Alien Tech Used (0) 0 Bonus (0) 0 TOTAL SCORE: 1315 Bonus ------- None Cogmind --------- Core Integrity 0/250 Matter 250/300 Energy 160/160 System Corruption 0% Temperature Cool (9) Movement Treading (320) Ox2 Location -10/Subcaves Parts ------- > --- POWER (1) -------- Light Nuclear Core > --- PROPULSION (2) --- Light Treads Wheel > --- UTILITY (2) ------ Improved Heat Sink High-capacity Storage Unit > --- WEAPON (2) ------- Particle Gun Particle Gun > --- INVENTORY (20) --- Ion Engine Ion Engine Light Treads Light Treads Light Treads Compact Wheel Compact Wheel Heat Sink Heat Sink High-capacity Matter Pod (200) Structural Scanner Hacking Suite Tractor Beam Particle Gun Light Assault Rifle Light Assault Rifle Light Assault Rifle Light Cannon Rocket Launcher Ripper Peak State ------------ > --- POWER ------------ Light Nuclear Core > --- PROPULSION ------- Light Treads Wheel > --- UTILITY ---------- Improved Heat Sink High-capacity Storage Unit > --- WEAPON ----------- Particle Gun Particle Gun > --- INVENTORY -------- Ion Engine Ion Engine Light Treads Light Treads Light Treads Compact Wheel Compact Wheel Heat Sink Heat Sink High-capacity Matter Pod Structural Scanner Hacking Suite Tractor Beam Particle Gun Light Assault Rifle Light Assault Rifle Light Assault Rifle Light Cannon Rocket Launcher Ripper [Rating: 15] Favorites ----------- Power Ion Engine Engine Ion Engine Power Core Light Nuclear Core Propulsion Light Treads Treads Light Treads Wheel Wheel Utility High-capacity Storage Unit Device Heat Sink Storage High-capacity Storage Unit Weapon Light Assault Rifle Energy Gun Particle Gun Ballistic Gun Light Assault Rifle Ballistic Cannon Light Cannon Slashing Weapon Ripper Build | -11 -10 -10 -10 ------- Run | Jun Mat Min Sub Slots Evolved . | . . . . Power . | . . . . Propulsion . | . . . . Utility . | . . . . Weapon . | . . . . Parts Attached 38 | 6 17 8 7 Power 10 | 1 4 3 2 Engine 8 | 1 4 2 1 Core 2 | . . 1 1 Reactor . | . . . . Propulsion 7 | 2 3 2 . Treads 2 | 1 1 . . Leg . | . . . . Wheel 5 | 1 2 2 . Hover . | . . . . Flight . | . . . . Utility 10 | 1 6 1 2 Device 6 | . 3 1 2 Storage 4 | 1 3 . . Processor . | . . . . Hackware . | . . . . Protection . | . . . . Artifact . | . . . . Weapon 11 | 2 4 2 3 Energy Gun 3 | . . 1 2 Energy Cannon . | . . . . Ballistic Gun 6 | 2 4 . . Ballistic Cannon 1 | . . 1 . Launcher . | . . . . Special Weapon . | . . . . Impact Weapon . | . . . . Slashing Weapon 1 | . . . 1 Piercing Weapon . | . . . . Special Melee Weapon . | . . . . Unidentified Prototypes . | . . . . Parts Lost 2 | . 1 1 . Power 2 | . 1 1 . Propulsion . | . . . . Utility . | . . . . Weapon . | . . . . Highest Loss Streak 1 | . 1 1 . To Critical Strikes . | . . . . Average Slot Usage (%) 99 | . 99 99 100 Engine 9 | . 13 5 . Core 4 | . . 8 14 Treads 14 | . 14 14 14 Wheel 14 | . 14 14 14 Device 13 | . 13 14 14 Storage 14 | . 14 14 14 Energy Gun 1 | . . 3 10 Ballistic Gun 22 | . 28 18 . Ballistic Cannon 3 | . . 6 13 Naked Turns . | . . . . Heaviest Build 52 | 13 48 52 52 Greatest Support 20 | 20 16 10 10 Greatest Overweight (x) 5 | 1 4 5 5 Average Overweight (x) 3 | . 2 4 5 Largest Inventory Capacity 20 | 8 20 20 20 Average Capacity 17 | 7 14 20 20 Most Carried 20 | 4 20 20 20 Average Carried 16 | 2 14 19 19 Final Capacity 20 | 8 20 20 20 Final Carried 20 | 4 20 20 20 Class Distribution -------------------- 58% | Mutant 41% | Scavenger-Mutant Dominant Class ---------------- Mutant | -10/Materials Scavenger-Mutant | -10/Mines Scavenger-Mutant | -10/Subcaves Resources | -11 -10 -10 -10 ----------- Run | Jun Mat Min Sub Matter Collected 1084 | 184 635 229 36 Remotely . | . . . . Salvage Created 1005 | . 756 249 . Parts 66 | . 49 17 . Haulers Intercepted 2 | . 2 . . Recyclers Shooed 4 | . 3 1 . Parts Field Recycled . | . . . . Retrieved Matter . | . . . . Parts Self-Destructed 5 | . . . 5 Prevented . | . . . . Kills | -11 -10 -10 -10 ------- Run | Jun Mat Min Sub Combat Hostiles Destroyed 15 | . 11 4 . Guns 15 | . 11 4 . Classes Destroyed 9 | . 7 2 . Worker 1 | . 1 . . Builder 1 | . . 1 . Tunneler 2 | . . 2 . Hauler 2 | . 2 . . Recycler 3 | . 3 . . Operator 1 | . 1 . . Watcher 2 | . 2 . . Swarmer 3 | . 3 . . Grunt 12 | . 8 4 . Best Kill Streak 4 | . 4 2 . Combat Bots Only 3 | . 3 2 . Max Kills in Single Turn 1 | . 1 1 . Gunslinging . | . . . . Exploded . | . . . . Melee . | . . . . Uniques/NPCs Destroyed . | . . . . Combat | -11 -10 -10 -10 -------- Run | Jun Mat Min Sub Damage Taken 1040 | . 604 390 46 Core 261 | . 150 65 46 Absorbed by Shields . | . . . . Regen/Repaired (Parts) 23 | . 23 . . Core Remaining (%) 100 | 100 . . . Volleys Fired 124 | . 82 37 5 Largest 2 | . 2 2 2 Hottest 130 | . 40 40 130 Shots Fired 244 | . 164 74 6 Gun 240 | . 164 74 2 Cannon 4 | . . . 4 Launcher . | . . . . Special . | . . . . Kinetic 242 | . 164 74 4 Thermal 2 | . . . 2 Explosive . | . . . . Electromagnetic . | . . . . Robot Hit Streak 13 | . 13 6 8 Robot Miss Streak 3 | . 3 3 . Penetration Max . | . . . . Secondary Targets 2 | . 1 1 . Max Gunslinging Chain 1 | . 1 1 . Shots Hit Robots 177 | . 120 55 2 Core Hits 63 | . 40 22 1 Critical Kills . | . . . . Critical Parts Destroyed 2 | . 1 1 . Critical Strikes 2 | . 1 1 . Destroy 2 | . 1 1 . Melee Attacks . | . . . . Impact . | . . . . Slashing . | . . . . Piercing . | . . . . Sneak Attacks . | . . . . Combat Hostiles . | . . . . Follow-up Attacks . | . . . . Damage Inflicted 1668 | . 1185 449 34 Guns 1668 | . 1185 449 34 Cannons . | . . . . Explosions . | . . . . Melee . | . . . . Ramming . | . . . . Kinetic 1634 | . 1185 449 . Thermal 34 | . . . 34 Explosive . | . . . . Electromagnetic . | . . . . Impact . | . . . . Slashing . | . . . . Piercing . | . . . . Highest Corruption . | . . . . Average Corruption . | . . . . Corruption Purged . | . . . . Corruption Blocked . | . . . . Overload Shots . | . . . . Overflow Damage . | . . . . Projectiles . | . . . . Explosions . | . . . . Melee . | . . . . Knockbacks . | . . . . Impact . | . . . . Kinetic . | . . . . Secondary . | . . . . Self-Inflicted Damage . | . . . . Shots . | . . . . Rammed . | . . . . Targets Rammed . | . . . . Kicked . | . . . . Crushed . | . . . . Highest Temperature 49 | . 5 49 . Average Temperature 23 | . 5 24 . Received Heat Transfer 549 | . 309 231 9 Siege Activations . | . . . . Robots Corrupted . | . . . . Combat Hostiles . | . . . . Parts Fried . | . . . . Impact Corruptions . | . . . . Robots Melted . | . . . . Combat Hostiles . | . . . . Parts Melted . | . . . . Heat Transferred 74 | . . . 74 Parts Sabotaged . | . . . . Parts Stolen . | . . . . Parts Stripped . | . . . . Power Chain Reactions . | . . . . Missiles Intercepted . | . . . . Alert | -11 -10 -10 -10 ------- Run | Jun Mat Min Sub Peak Influence 197 | . 197 58 . Initial 3 | . . 3 . Average 50 | . 63 33 . Maximum Alert Level . | . . . . Low Security (%) 100 | 100 100 100 . Level 1 . | . . . . Level 2 . | . . . . Level 3 . | . . . . Level 4 . | . . . . Level 5 . | . . . . High Security . | . . . . Max Security . | . . . . Squads Dispatched 4 | . 4 . . Investigation 2 | . 2 . . Extermination . | . . . . Reinforcement 2 | . 2 . . Assault . | . . . . Garrison . | . . . . Intercept . | . . . . Searches Triggered . | . . . . Construction Impeded . | . . . . Haulers Reinforced . | . . . . Active Scanning Responses . | . . . . Cargo Convoy Interrupts . | . . . . Stealth | -11 -10 -10 -10 --------- Run | Jun Mat Min Sub Distress Signals 2 | . . 2 . Communications Jammed . | . . . . Distress Signals . | . . . . Times Spotted 32 | . 26 4 2 Peak Tracking Total 4 | . 4 2 2 Tactical Retreats 1 | . 1 . . Traps | -11 -10 -10 -10 ------- Run | Jun Mat Min Sub Traps Triggered 2 | . 2 . . Indirectly . | . . . . Trap Hack Attempts . | . . . . Triggered . | . . . . Disarmed . | . . . . Reprogrammed . | . . . . Reused . | . . . . Traps Extracted . | . . . . Installed . | . . . . Triggered . | . . . . Machines | -11 -10 -10 -10 ---------- Run | Jun Mat Min Sub Machines Disabled . | . . . . Max in Single Turn . | . . . . Machines Repaired . | . . . . Machines Sabotaged . | . . . . Overloaded Fab Kills . | . . . . Hacking | -11 -10 -10 -10 --------- Run | Jun Mat Min Sub Machines Accessed 8 | . 8 . . Terminals 6 | . 6 . . Fabricators . | . . . . Repair Stations 1 | . 1 . . Recycling Units 1 | . 1 . . Scanalyzers . | . . . . Garrison Access . | . . . . Total Hacks 19 | . 19 . . Successful 8 | . 8 . . Failed 11 | . 11 . . Catastrophic 6 | . 6 . . Database Lockouts . | . . . . Manual 7 | . 7 . . Terminals 13 | . 13 . . Fabricators . | . . . . Repair Stations 2 | . 2 . . Recycling Units 4 | . 4 . . Scanalyzers . | . . . . Garrison Access . | . . . . Terminal Hacks 2 | . 2 . . Alert Level 1 | . 1 . . Zone Layout 1 | . 1 . . Fabricator Hacks . | . . . . Repair Station Hacks 2 | . 2 . . Scan Component 1 | . 1 . . Repair 1 | . 1 . . Recycling Unit Hacks 2 | . 2 . . Report Inventory 1 | . 1 . . Retrieve Components 1 | . 1 . . Scanalyzer . | . . . . Garrison Access Hacks . | . . . . Unauthorized Hacks 2 | . 2 . . Terminals 2 | . 2 . . Botnet 2 | . 2 . . Fabricators . | . . . . Repair Stations . | . . . . Recycling Units . | . . . . Scanalyzers . | . . . . Garrison Access . | . . . . Data Cores Recovered . | . . . . Used . | . . . . Hacking Detections 6 | . 6 . . Full Trace Events 1 | . 1 . . Feedback Events . | . . . . Feedback Blocked . | . . . . Robot Schematics Acquired . | . . . . Robots Built . | . . . . Authchips . | . . . . Time . | . . . . Total Robot Build Rating . | . . . . Part Schematics Acquired . | . . . . Parts Built . | . . . . Authchips . | . . . . Time . | . . . . Total Part Build Rating . | . . . . Parts Repaired 1 | . 1 . . Time 26 | . 26 . . Parts Recycled . | . . . . Recycled Matter . | . . . . Retrieved Matter . | . . . . Retrieved Components 3 | . 3 . . Parts Scanalyzed . | . . . . Part Schematics Acquired . | . . . . Parts Damaged . | . . . . Bothacking | -11 -10 -10 -10 ------------ Run | Jun Mat Min Sub Used RIF Installer . | . . . . Robots Hacked . | . . . . Non-combat . | . . . . Combat . | . . . . Robot Hacks Applied . | . . . . Relay Couplers Released . | . . . . Fabnet Peak Effective % . | . . . . Robots Rewired . | . . . . Allies Hacked . | . . . . Hacks Repelled . | . . . . Allies | -11 -10 -10 -10 -------- Run | Jun Mat Min Sub Total Allies . | . . . . Largest Group . | . . . . Highest-Rated Group . | . . . . Highest-Rated Ally . | . . . . Total Orders . | . . . . Ally Attacks . | . . . . Total Damage . | . . . . Kills . | . . . . Allies Corrupted . | . . . . Allies Melted . | . . . . Intel | -11 -10 -10 -10 ------- Run | Jun Mat Min Sub Robot Analysis Total . | . . . . Derelict Logs Recovered 3 | . . 3 . Drone Launches . | . . . . Drone Recoveries . | . . . . Exploration | -11 -10 -10 -10 ------------- Run | Jun Mat Min Sub Turns Passed 2788 | 53 1500 1075 160 Spaces Moved 1517 | 39 898 497 83 Core 6 | 6 . . . Treads 5 | 5 . . . Legs . | . . . . Wheels 1506 | 28 898 497 83 Hover . | . . . . Flight . | . . . . Fastest Speed 50 | 50 95 140 155 Average Speed 129 | 103 119 144 155 Slowest Speed 160 | 160 140 155 155 Overloaded Moves . | . . . . Propulsion Burnouts . | . . . . Robots Hopped . | . . . . Cave-ins Triggered . | . . . . Exploration Rate (%) 49 | 4 98 85 11 Regions Visited 3 Branch Regions 2 Pre-discovered Areas 2 | . . 2 . Known Exits Taken 1 | . . 1 . Unknown Exits Taken 2 | 1 1 . . Scrap Searched 4 | . . 3 1 Spaces Dug . | . . . . Terrain Destroyed . | . . . . Melee . | . . . . Projectile . | . . . . AOE . | . . . . Terrain Rammed . | . . . . Walls Destroyed . | . . . . Machines Disabled . | . . . . Actions | -11 -10 -10 -10 --------- Run | Jun Mat Min Sub Total 2152 | 48 1201 796 107 Wait 398 | . 145 245 8 Move 1514 | 38 897 496 83 Hop . | . . . . Pick Up 39 | 4 32 3 . Fast Attach 12 | 6 2 2 2 Attach 3 | . 1 2 . Detach 1 | . . . 1 Swap 23 | . 14 4 5 Drop 38 | . 28 7 3 Fire 124 | . 82 37 5 Melee . | . . . . Ram . | . . . . Kick . | . . . . Crush . | . . . . Escape Stasis . | . . . . Rewire . | . . . . Trap . | . . . . Miscellaneous . | . . . . Route ------- -11/Junkyard -10/Materials (discovered 4 exits: *Mat x3 / [*Min]) -10/Mines (discovered 4 exits: *Mat x2 / [*Exi] / *Sub) -10/Subcaves History --------- Turn | Location | Event 13 | -11/Junkyard | Discovered new exit (range 14) 54 | -11/Junkyard | Entered Materials 316 | -10/Materials | Build established: Mutant 569 | -10/Materials | Discovered new exit (range 15) 705 | -10/Materials | Discovered new exit (range 12) 818 | -10/Materials | Core integrity fell below 50% 1283 | -10/Materials | Discovered new exit (range 16) 1405 | -10/Materials | Discovered new exit (range 16) 1466 | -10/Materials | Repaired Ion Engine 1554 | -10/Materials | Entered Mines 1621 | -10/Mines | Core integrity fell below 20% 1709 | -10/Mines | Deemed a non-threat by the Exiles lab entrance 1710 | -10/Mines | Discovered new exit (range 5) 2044 | -10/Mines | Excavation squad dispatched 2044 | -10/Mines | A large section of the Mines collapsed 2136 | -10/Mines | Build established: Scavenger-Mutant 2307 | -10/Mines | Identified exit to Subcaves 2323 | -10/Mines | Received a Rocket Launcher from a helpful Derelict 2387 | -10/Mines | Learned location of Zion (-7) 2557 | -10/Mines | Identified exit to Materials 2592 | -10/Mines | Learned location of Storage (-7) 2605 | -10/Mines | Discovered exit to Materials (range 5) 2629 | -10/Mines | Entered Subcaves 2789 | -10/Subcaves | Destroyed by RE-QGF(R) with Subdweller Beam Cannon Last Messages --------------- 02619_ U-05 Engineer lays Concrete. 02622_ U-05 Engineer builds a Wall. 02623_ T-07 Excavator is excavating. 02626_ U-05 Engineer builds a Wall. 02627_ T-07 Excavator is excavating. LOCATION=SUBCAVES AMBIENT_HEAT=-10 GOAL=ESCAPE 02710_ Searching scrap... 02710_ Found Sub. Power Source. 02710_ Found Ripper. 02710_ Found 31 Matter. 02711_ Acquired 16 matter. 02713_ Dropped Lgt. Nuclear Core. 02713_ Acquired Sub. Power Source. 02716_ Dropped Sub. Power Source. 02718_ Acquired 15 matter. 02721_ Dropped Lgt. Assault Rifle. 02722_ Acquired Ripper. 02725_ Acquired 5 matter. Map ----- +----------------------------------------------------+ | ?????????????????????????????????????????????????? | | ?????????????????????????????????????????????????? | | ?????????????????????????????????????????????????? | | ?????????????????????????????????????????????????? | | ?????????????????????????????????????????????????? | | ?????????????????????????????????????????????????? | | ?????????????????????????????????????????????????? | | ?????????????????????????????????????????????????? | | ?????????????????????????????????????????????????? | | ?????????????????????????????????????????????????? | | ?????????????????????????????????????????????????? | | ????????????????# ?????????????????????????????? | | ????????????????## ????????????????????????????? | | ??????????????#### ????????????????????????####? | | ?????????????? ### ### ???????????????????##### | | ?????????????? ### ???????????????????## ## | | ??????????????? ## ???????????????????## # | | ???????????????? ????????????????????## | | ????????????????## ###?????????????????### | | ????????????????## #####????????????????### | | ????????????????## #####????????????????### | | ?????????## ?? ### ###????????????????### | | ?????????## ### ##??????????????##### | | ?????????# R ###?????????????#####" | | ?????????? R #######????????#### # | | ??????????" "##@ #########????#### ## | | ??????????"" ?? #### ######??#### # | | ??????????######???????### ##### ## ##### | | ??????????##"###???????## ## ###### ###### | | ??????????????????## ### #### ######? | | ????????????????#### #### ### ## ### | | ????????????????## #### ## # ### | | ???????????????? "" #### ## ## | | ??????????????? ? " #### ## | | ????????????????? # ########### ### | | ?????????????????######## ################ #### | | ?????????????????######## #???????############# | | ???????????????????????#######????????????### #### | | ???????????????????????#######?????????????## ### | | ???????????????????????????????????????????### | | ???????????????????????????????????????????#### | | ????????????????????????????????????????????#### | | ?????????????????????????????????????????????### | | ??????????????????????????????????????????????### | | ??????????????????????????????????????????????### | | ???????????????????????????????????????????????## | | ???????????????????????????????????????????????## | | ???????????????????????????????????????????????### | | ???????????????????????????????????????????????### | | ????????????????????????????????????????????????## | +----------------------------------------------------+ Best States ------------- Heat Dissipation 39 Energy Generation 14 Energy Capacity 250 Matter Stores 300 Matter Capacity 300 Sight Range 16 Terrain Scan Density 10 Evasion (%) 41 Recoil Reduction 1 Item Schematics ----------------- None Robot Schematics ------------------ None Fabricated ------------ Nothing Alien Tech Used ----------------- None Achievements -------------- None Challenges ------------ None Game ------ Seed SurgeResetFalx Manual? 0 Play Time 00:14:32 Cumulative 1241.8 hours Start 2023.11.25 @ 20:51:17 End 2023.11.25 @ 21:04:47 Sessions 1 Manual Loads 0 Difficulty Rogue Special Mode None Game No. 901 Rogue 861 Adventurer 40 Explorer 0 Win Type - Total 145 Types 71/7/42/2/1/4/15/2/1 Lore% 90 Gallery% 93 Achievement% 82 Wizard Run 0 Options --------- ASCII 0 Keyboard 0 Movement Numpad Keybinds 0 Fullscreen 0 Font 20/Terminus Map View 76x50 Tactical HUD 1 Map Filters NONE Filters NONE Steam 1 RUN: 87e1d36d-5765-440f-8f45-afa9f83c0982